[Event "*** Qualifier 2: Titled Tuesday 3|2 Blitz"]
[Site "Chess.com"]
[Date "2017.04.11"]
[Round "2"]
[White "Tolya2"]
[Black "maciek_92"]
[Result "0-1"]
[WhiteElo "2324"]
[BlackElo "2506"]
[TimeControl "180+2"]
[EndTime "13:23:12 PDT"]
[Termination "maciek_92 won by resignation"]

1. Nf3 {[%clk 0:03:02]} 1... Nf6 {[%clk 0:03:00.6]} 2. d4 {[%clk 0:03:02.3]}
2... g6 {[%clk 0:03:01.7]} 3. g3 {[%clk 0:03:02.8]} 3... Bg7 {[%clk 0:03:03.2]}
4. Bg2 {[%clk 0:03:04]} 4... O-O {[%clk 0:03:04.9]} 5. O-O {[%clk 0:03:05]} 5...
d6 {[%clk 0:03:06.6]} 6. b3 {[%clk 0:03:05.7]} 6... Nbd7 {[%clk 0:03:08.2]} 7.
Bb2 {[%clk 0:03:06.5]} 7... c6 {[%clk 0:03:09.8]} 8. Nbd2 {[%clk 0:03:05.3]}
8... Qc7 {[%clk 0:03:09]} 9. e4 {[%clk 0:03:06]} 9... a5 {[%clk 0:03:03.8]} 10.
a4 {[%clk 0:03:05.6]} 10... Re8 {[%clk 0:03:02.9]} 11. Re1 {[%clk 0:03:05.9]}
11... e5 {[%clk 0:03:02.9]} 12. dxe5 {[%clk 0:03:06.8]} 12... Nxe5 {[%clk
0:03:04]} 13. Nxe5 {[%clk 0:03:06.8]} 13... dxe5 {[%clk 0:03:05.3]} 14. Nc4
{[%clk 0:03:07.8]} 14... Bg4 {[%clk 0:03:05.5]} 15. Qd6 {[%clk 0:03:07.5]} 15...
Qxd6 {[%clk 0:02:48.5]} 16. Nxd6 {[%clk 0:03:07.9]} 16... Re7 {[%clk 0:02:49.9]}
17. h3 {[%clk 0:03:07.6]} 17... Bc8 {[%clk 0:02:43.5]} 18. Rad1 {[%clk
0:03:07.2]} 18... Nd7 {[%clk 0:02:37.9]} 19. Nxc8 {[%clk 0:03:03.5]} 19... Rxc8
{[%clk 0:02:38.2]} 20. Ba3 {[%clk 0:03:04.4]} 20... c5 {[%clk 0:02:38.9]} 21.
Bf1 {[%clk 0:03:04.1]} 21... b6 {[%clk 0:02:34.9]} 22. Ba6 {[%clk 0:02:57.7]}
22... Rb8 {[%clk 0:02:15.9]} 23. Bb5 {[%clk 0:02:57.5]} 23... Nf8 {[%clk
0:02:14.6]} 24. Bc4 {[%clk 0:02:55.8]} 24... h5 {[%clk 0:02:08.8]} 25. Kg2
{[%clk 0:02:52.5]} 25... Rbb7 {[%clk 0:02:02]} 26. Bc1 {[%clk 0:02:52.1]} 26...
Red7 {[%clk 0:01:59.5]} 27. Kf3 {[%clk 0:02:44.5]} 27... Bf6 {[%clk 0:01:54.5]}
28. Ke2 {[%clk 0:02:43.3]} 28... Rxd1 {[%clk 0:01:51.8]} 29. Rxd1 {[%clk
0:02:43]} 29... Rd7 {[%clk 0:01:51.7]} 30. Rxd7 {[%clk 0:02:43]} 30... Nxd7
{[%clk 0:01:53.6]} 31. f4 {[%clk 0:02:40]} 31... h4 {[%clk 0:01:51.2]} 32. fxe5
{[%clk 0:02:29.6]} 32... Bxe5 {[%clk 0:01:51.1]} 33. g4 {[%clk 0:02:30.6]} 33...
Kg7 {[%clk 0:01:41.9]} 34. Bb5 {[%clk 0:02:27.1]} 34... Nf8 {[%clk 0:01:36.5]}
35. Bc4 {[%clk 0:02:25.6]} 35... Kf6 {[%clk 0:01:34.4]} 36. Kf3 {[%clk
0:02:17.5]} 36... g5 {[%clk 0:01:34.7]} 37. Bd2 {[%clk 0:02:15]} 37... Ng6
{[%clk 0:01:34.7]} 38. Bd5 {[%clk 0:02:10.9]} 38... Bd6 {[%clk 0:01:29]} 39.
Bc3+ {[%clk 0:02:10.5]} 39... Ke7 {[%clk 0:01:26.8]} 40. Bd2 {[%clk 0:02:07]}
40... Bf4 {[%clk 0:01:27.7]} 41. Bc3 {[%clk 0:02:07.5]} 41... Be5 {[%clk
0:01:28.8]} 42. Bd2 {[%clk 0:02:08]} 42... f6 {[%clk 0:01:22.6]} 43. Ke2 {[%clk
0:02:07.5]} 43... Bf4 {[%clk 0:01:20.8]} 44. Bc3 {[%clk 0:02:07.7]} 44... Be5
{[%clk 0:01:21.9]} 45. Bd2 {[%clk 0:02:08.5]} 45... Kd6 {[%clk 0:01:23.1]} 46.
Kd3 {[%clk 0:02:09]} 46... Bf4 {[%clk 0:01:15]} 47. Bc3 {[%clk 0:02:09.7]} 47...
Be5 {[%clk 0:01:16.3]} 48. Bd2 {[%clk 0:02:10.9]} 48... Kc7 {[%clk 0:01:15.6]}
49. Be6 {[%clk 0:02:07.7]} 49... Bd4 {[%clk 0:01:12.5]} 50. Bf5 {[%clk
0:02:06.5]} 50... Ne5+ {[%clk 0:01:12.3]} 51. Ke2 {[%clk 0:02:07.3]} 51... Kd6
{[%clk 0:01:12.6]} 52. c3 {[%clk 0:02:08.3]} 52... Bg1 {[%clk 0:01:13.1]} 53.
Kf1 {[%clk 0:02:07.2]} 53... Bh2 {[%clk 0:01:14.3]} 54. b4 {[%clk 0:02:04.7]}
54... Nc4 {[%clk 0:01:09.5]} 55. Be1 {[%clk 0:02:00.5]} 55... Be5 {[%clk
0:01:08.8]} 56. Ke2 {[%clk 0:01:58.7]} 56... Nb2 {[%clk 0:01:08.2]} 57. bxa5
{[%clk 0:01:56.7]} 57... bxa5 {[%clk 0:01:08.6]} 58. c4 {[%clk 0:01:53.5]} 58...
Nxc4 {[%clk 0:01:09.3]} 59. Kd3 {[%clk 0:01:47.6]} 59... Nb2+ {[%clk 0:01:06.9]}
60. Kc2 {[%clk 0:01:48.6]} 60... Nxa4 {[%clk 0:01:07.4]} 61. Bxa5 {[%clk
0:01:49.3]} 61... c4 {[%clk 0:01:01.7]} 62. Bg6 {[%clk 0:01:47.2]} 62... Bd4
{[%clk 0:01:00.6]} 63. Bf7 {[%clk 0:01:46.9]} 63... Kc5 {[%clk 0:01:00.9]} 64.
Bd8 {[%clk 0:01:44.9]} 64... Nc3 {[%clk 0:00:59.3]} 65. Be7+ {[%clk 0:01:45.7]}
65... Kb5 {[%clk 0:00:57.9]} 66. Be8+ {[%clk 0:01:46]} 66... Kb6 {[%clk
0:00:59.3]} 67. Bf7 {[%clk 0:01:46.6]} 67... Nxe4 {[%clk 0:00:59.8]} 68. Bxc4
{[%clk 0:01:47.3]} 68... Nf2 {[%clk 0:01:00.4]} 69. Bf1 {[%clk 0:01:47.6]} 69...
Kc6 {[%clk 0:01:01]} 70. Bg2+ {[%clk 0:01:47.7]} 70... Kd7 {[%clk 0:01:02.2]}
71. Bb4 {[%clk 0:01:48.2]} 71... Ke6 {[%clk 0:01:02]} 72. Kd2 {[%clk 0:01:49.1]}
72... Ke5 {[%clk 0:00:57.4]} 73. Ba5 {[%clk 0:01:47]} 73... Kf4 {[%clk
0:00:55.8]} 74. Ke2 {[%clk 0:01:45.5]} 74... Kg3 {[%clk 0:00:54.5]} 75. Bf1
{[%clk 0:01:43.4]} 75... Nxh3 {[%clk 0:00:55.4]} 76. Bxh3 {[%clk 0:01:43.6]}
76... Kxh3 {[%clk 0:00:55.8]} 77. Kf3 {[%clk 0:01:43.7]} 77... f5 {[%clk
0:00:52.9]} 78. gxf5 {[%clk 0:01:42.4]} 78... g4+ {[%clk 0:00:54.8]} 79. Ke4
{[%clk 0:01:43.8]} 79... g3 {[%clk 0:00:54.5]} 80. Kxd4 {[%clk 0:01:43.4]} 80...
g2 {[%clk 0:00:55.9]} 81. f6 {[%clk 0:01:44]} 81... g1=Q+ {[%clk 0:00:57.8]} 82.
Ke5 {[%clk 0:01:45.2]} 82... Qa1+ {[%clk 0:00:59]} 83. Ke6 {[%clk 0:01:45.9]}
83... Qxa5 {[%clk 0:01:00.1]} 84. f7 {[%clk 0:01:47.2]} 84... Qa3 {[%clk
0:01:01.7]} 0-1

[Event "*** Qualifier 2: Titled Tuesday 3|2 Blitz"]
[Site "Chess.com"]
[Date "2017.04.11"]
[Round "2"]
[White "GamayevOleg"]
[Black "Vrolijk"]
[Result "1/2-1/2"]
[WhiteElo "2405"]
[BlackElo "2283"]
[TimeControl "180+2"]
[EndTime "13:23:13 PDT"]
[Termination "Game drawn by repetition"]

1. Nf3 {[%clk 0:03:01.9]} 1... Nf6 {[%clk 0:02:57.6]} 2. e3 {[%clk 0:03:03.8]}
2... g6 {[%clk 0:02:57.9]} 3. b3 {[%clk 0:03:03.7]} 3... Bg7 {[%clk 0:02:59]} 4.
Bb2 {[%clk 0:03:05.6]} 4... O-O {[%clk 0:03:00.6]} 5. Be2 {[%clk 0:03:06.2]}
5... d6 {[%clk 0:03:01.4]} 6. d4 {[%clk 0:03:07.4]} 6... c5 {[%clk 0:02:57.8]}
7. Nbd2 {[%clk 0:03:07.8]} 7... Nc6 {[%clk 0:02:58]} 8. O-O {[%clk 0:03:08.2]}
8... cxd4 {[%clk 0:02:58.5]} 9. Nxd4 {[%clk 0:03:09.5]} 9... Bd7 {[%clk
0:02:58.1]} 10. c4 {[%clk 0:03:04.3]} 10... Rc8 {[%clk 0:02:56.9]} 11. Bf3
{[%clk 0:03:04.9]} 11... h5 {[%clk 0:02:41.2]} 12. h3 {[%clk 0:03:02]} 12... Qc7
{[%clk 0:02:36.6]} 13. Rc1 {[%clk 0:02:58]} 13... Qb8 {[%clk 0:02:28.8]} 14. Qc2
{[%clk 0:02:55.2]} 14... d5 {[%clk 0:02:17.5]} 15. Qb1 {[%clk 0:02:54.7]} 15...
e5 {[%clk 0:02:14.4]} 16. Nxc6 {[%clk 0:02:55.1]} 16... bxc6 {[%clk 0:02:16.3]}
17. cxd5 {[%clk 0:02:54]} 17... cxd5 {[%clk 0:02:17.3]} 18. Rxc8 {[%clk
0:02:53.4]} 18... Bxc8 {[%clk 0:02:19.2]} 19. Rc1 {[%clk 0:02:54.1]} 19... Re8
{[%clk 0:02:08.9]} 20. Be2 {[%clk 0:02:53.2]} 20... Bf5 {[%clk 0:02:07.8]} 21.
Bd3 {[%clk 0:02:54]} 21... Bd7 {[%clk 0:02:05.2]} 22. Bf1 {[%clk 0:02:52]} 22...
Qb6 {[%clk 0:01:56.2]} 23. Nf3 {[%clk 0:02:50.9]} 23... Bf5 {[%clk 0:01:55.2]}
24. Qa1 {[%clk 0:02:49.1]} 24... Nd7 {[%clk 0:01:54.6]} 25. Nh4 {[%clk
0:02:36.2]} 25... Be4 {[%clk 0:01:47.1]} 26. Be2 {[%clk 0:02:31.9]} 26... d4
{[%clk 0:01:45.9]} 27. exd4 {[%clk 0:02:29.6]} 27... exd4 {[%clk 0:01:47.8]} 28.
Bf3 {[%clk 0:02:28.1]} 28... Bf6 {[%clk 0:00:55.5]} 29. Bxe4 {[%clk 0:02:25.5]}
29... Rxe4 {[%clk 0:00:57.4]} 30. Nf3 {[%clk 0:02:25.4]} 30... d3 {[%clk
0:00:56.7]} 31. Bxf6 {[%clk 0:02:17]} 31... Nxf6 {[%clk 0:00:58.6]} 32. Rd1
{[%clk 0:01:56.3]} 32... Re2 {[%clk 0:00:56.7]} 33. Nd4 {[%clk 0:01:57.3]} 33...
Ne4 {[%clk 0:00:42.5]} 34. Rxd3 {[%clk 0:01:38.6]} 34... Nxf2 {[%clk 0:00:35.7]}
35. Nxe2 {[%clk 0:01:32.7]} 35... Nxd3+ {[%clk 0:00:35.7]} 36. Qd4 {[%clk
0:01:33.8]} 36... Qxd4+ {[%clk 0:00:33.9]} 37. Nxd4 {[%clk 0:01:35.7]} 37... Kg7
{[%clk 0:00:35.8]} 38. a4 {[%clk 0:01:33.8]} 38... Nc5 {[%clk 0:00:34.1]} 39. a5
{[%clk 0:01:32.4]} 39... Nd3 {[%clk 0:00:25.9]} 40. Nc6 {[%clk 0:01:30.5]} 40...
a6 {[%clk 0:00:27]} 41. b4 {[%clk 0:01:31.5]} 41... Nf4 {[%clk 0:00:18.7]} 42.
Nb8 {[%clk 0:01:28.2]} 42... Kf6 {[%clk 0:00:20.3]} 43. Nxa6 {[%clk 0:01:29.1]}
43... Ke7 {[%clk 0:00:21.9]} 44. b5 {[%clk 0:01:29]} 44... Kd6 {[%clk
0:00:22.4]} 45. b6 {[%clk 0:01:29.8]} 45... Kc6 {[%clk 0:00:23.5]} 46. Nb4+
{[%clk 0:01:27.7]} 46... Kb7 {[%clk 0:00:23.8]} 47. h4 {[%clk 0:01:29.2]} 47...
Ne6 {[%clk 0:00:24.2]} 48. Nd3 {[%clk 0:01:29.3]} 48... Ka6 {[%clk 0:00:23.8]}
49. Ne5 {[%clk 0:01:28.3]} 49... Nd8 {[%clk 0:00:24.4]} 50. Kf2 {[%clk 0:01:25]}
50... Kxa5 {[%clk 0:00:25.4]} 51. b7 {[%clk 0:01:24.8]} 51... Nxb7 {[%clk
0:00:24.7]} 52. Nxf7 {[%clk 0:01:25.8]} 52... Kb5 {[%clk 0:00:25]} 53. Ne5
{[%clk 0:01:26.8]} 53... Kc5 {[%clk 0:00:26.1]} 54. Nxg6 {[%clk 0:01:28]} 54...
Nd6 {[%clk 0:00:27.4]} 55. Nf4 {[%clk 0:01:28.5]} 55... Ne4+ {[%clk 0:00:28.7]}
56. Ke3 {[%clk 0:01:26.4]} 56... Nf6 {[%clk 0:00:30.6]} 57. Nh3 {[%clk
0:01:22.4]} 57... Kd5 {[%clk 0:00:29.2]} 58. Kf4 {[%clk 0:01:23.9]} 58... Ke6
{[%clk 0:00:30.2]} 59. Kg5 {[%clk 0:01:25.5]} 59... Ke5 {[%clk 0:00:30.8]} 60.
g3 {[%clk 0:01:24.1]} 60... Ne4+ {[%clk 0:00:31.9]} 61. Kxh5 {[%clk 0:01:24.9]}
61... Nxg3+ {[%clk 0:00:33]} 62. Kg4 {[%clk 0:01:26.8]} 62... Ne4 {[%clk
0:00:32.4]} 63. Ng5 {[%clk 0:01:21.5]} 63... Nf6+ {[%clk 0:00:32.5]} 64. Kg3
{[%clk 0:01:21]} 64... Kf5 {[%clk 0:00:34.4]} 65. Nf3 {[%clk 0:01:20.4]} 65...
Ne4+ {[%clk 0:00:34]} 66. Kh3 {[%clk 0:01:20.7]} 66... Nf2+ {[%clk 0:00:35.3]}
67. Kg2 {[%clk 0:01:22.1]} 67... Ne4 {[%clk 0:00:36.5]} 68. Kh3 {[%clk
0:01:22.1]} 68... Nf2+ {[%clk 0:00:37.5]} 69. Kg3 {[%clk 0:01:23.8]} 69... Ne4+
{[%clk 0:00:38.7]} 70. Kh3 {[%clk 0:01:21.1]} 1/2-1/2

[Event "*** Qualifier 2: Titled Tuesday 3|2 Blitz"]
[Site "Chess.com"]
[Date "2017.04.11"]
[Round "2"]
[White "MITerryble"]
[Black "Ginger_GM"]
[Result "1-0"]
[WhiteElo "2662"]
[BlackElo "2437"]
[TimeControl "180+2"]
[EndTime "13:23:14 PDT"]
[Termination "MITerryble won by resignation"]

1. d4 {[%clk 0:03:02]} 1... e6 {[%clk 0:03:00.2]} 2. Nf3 {[%clk 0:03:03.1]} 2...
f5 {[%clk 0:03:01.4]} 3. c4 {[%clk 0:03:03.9]} 3... Nf6 {[%clk 0:03:02.5]} 4.
Nc3 {[%clk 0:03:00.8]} 4... Be7 {[%clk 0:03:03.4]} 5. h3 {[%clk 0:03:00.3]} 5...
O-O {[%clk 0:03:03.4]} 6. Qc2 {[%clk 0:02:57.7]} 6... d6 {[%clk 0:02:55.2]} 7.
g4 {[%clk 0:02:57.8]} 7... Nc6 {[%clk 0:02:53.2]} 8. gxf5 {[%clk 0:02:51.8]}
8... e5 {[%clk 0:02:45.2]} 9. d5 {[%clk 0:02:27.2]} 9... Nb4 {[%clk 0:02:31.9]}
10. Qb3 {[%clk 0:02:19.6]} 10... a5 {[%clk 0:01:40.1]} 11. a3 {[%clk 0:02:08.1]}
11... Na6 {[%clk 0:01:40.3]} 12. e4 {[%clk 0:02:08.6]} 12... Nc5 {[%clk
0:01:39.4]} 13. Qc2 {[%clk 0:02:09.6]} 13... a4 {[%clk 0:01:37.8]} 14. Be3
{[%clk 0:02:07.5]} 14... Ncxe4 {[%clk 0:01:25.3]} 15. Nxe4 {[%clk 0:01:53.4]}
15... Nxe4 {[%clk 0:01:26.1]} 16. Bd3 {[%clk 0:01:54.1]} 16... Nf6 {[%clk
0:01:11.6]} 17. Nd2 {[%clk 0:00:52.2]} 17... c6 {[%clk 0:01:08.4]} 18. Rg1
{[%clk 0:00:53.2]} 18... cxd5 {[%clk 0:01:08.9]} 19. cxd5 {[%clk 0:00:54.1]}
19... Kh8 {[%clk 0:01:05.6]} 20. Bc4 {[%clk 0:00:39.4]} 20... Bd7 {[%clk
0:01:00.8]} 21. Qd3 {[%clk 0:00:36.5]} 21... Rc8 {[%clk 0:00:55.6]} 22. Bb5
{[%clk 0:00:33.9]} 22... e4 {[%clk 0:00:47.5]} 23. Qe2 {[%clk 0:00:24.9]} 23...
Bxf5 {[%clk 0:00:42.4]} 24. Bd4 {[%clk 0:00:24]} 24... Qa5 {[%clk 0:00:33.6]}
25. Rg5 {[%clk 0:00:17.2]} 25... Bg6 {[%clk 0:00:29.9]} 26. Kf1 {[%clk
0:00:15.1]} 26... Nh5 {[%clk 0:00:25.2]} 27. Rxh5 {[%clk 0:00:15]} 27... Bxh5
{[%clk 0:00:23.7]} 28. Qxh5 {[%clk 0:00:11.6]} 28... Qxb5+ {[%clk 0:00:24.9]}
29. Kg1 {[%clk 0:00:12.2]} 29... Qd3 {[%clk 0:00:21.4]} 30. Be3 {[%clk
0:00:13.4]} 30... Bf6 {[%clk 0:00:21.7]} 31. Qg4 {[%clk 0:00:10]} 31... Rfe8
{[%clk 0:00:20.3]} 32. Rd1 {[%clk 0:00:09.5]} 32... Qc2 {[%clk 0:00:17]} 33. Nf1
{[%clk 0:00:08.5]} 33... Qxb2 {[%clk 0:00:17.1]} 34. Ng3 {[%clk 0:00:09]} 34...
Qxa3 {[%clk 0:00:17.7]} 35. Nf5 {[%clk 0:00:10.1]} 35... Qb3 {[%clk 0:00:17.9]}
36. Nxd6 {[%clk 0:00:10.8]} 36... a3 {[%clk 0:00:16.5]} 37. Nxc8 {[%clk
0:00:10.2]} 37... a2 {[%clk 0:00:17.9]} 38. Nd6 {[%clk 0:00:11.3]} 38... Rf8
{[%clk 0:00:17.4]} 39. Nxe4 {[%clk 0:00:11.1]} 39... a1=Q {[%clk 0:00:16.7]} 40.
Rxa1 {[%clk 0:00:11.5]} 40... Bxa1 {[%clk 0:00:18.3]} 41. d6 {[%clk 0:00:12.5]}
41... Qd5 {[%clk 0:00:19.3]} 42. d7 {[%clk 0:00:09.3]} 42... Be5 {[%clk
0:00:17.4]} 43. Nc5 {[%clk 0:00:08.8]} 43... Bc7 {[%clk 0:00:12.2]} 44. Ne6
{[%clk 0:00:08.9]} 44... Qe5 {[%clk 0:00:02.7]} 45. Nxf8 {[%clk 0:00:08]} 45...
Qh2+ {[%clk 0:00:03.3]} 46. Kf1 {[%clk 0:00:09.1]} 46... Qh1+ {[%clk 0:00:04.3]}
47. Ke2 {[%clk 0:00:10.3]} 1-0

[Event "*** Qualifier 2: Titled Tuesday 3|2 Blitz"]
[Site "Chess.com"]
[Date "2017.04.11"]
[Round "2"]
[White "proxy6"]
[Black "FearNoEvil12"]
[Result "1-0"]
[WhiteElo "2220"]
[BlackElo "2088"]
[TimeControl "180+2"]
[EndTime "13:23:16 PDT"]
[Termination "proxy6 won on time"]

1. e4 {[%clk 0:03:02]} 1... a6 {[%clk 0:03:00.4]} 2. d4 {[%clk 0:03:02.5]} 2...
b5 {[%clk 0:03:01.9]} 3. Nc3 {[%clk 0:03:00.9]} 3... Bb7 {[%clk 0:03:02.8]} 4.
f3 {[%clk 0:03:00.5]} 4... e6 {[%clk 0:03:01.2]} 5. Be3 {[%clk 0:03:01.9]} 5...
Nf6 {[%clk 0:03:02.2]} 6. Qd2 {[%clk 0:03:02.6]} 6... d6 {[%clk 0:03:02.9]} 7.
O-O-O {[%clk 0:03:02.3]} 7... Nbd7 {[%clk 0:03:04.2]} 8. g4 {[%clk 0:03:03.3]}
8... h6 {[%clk 0:03:04.2]} 9. h4 {[%clk 0:02:50]} 9... c5 {[%clk 0:03:04]} 10.
dxc5 {[%clk 0:02:47.4]} 10... dxc5 {[%clk 0:03:01.4]} 11. Nh3 {[%clk 0:02:45.4]}
11... Nb6 {[%clk 0:02:56.1]} 12. Qxd8+ {[%clk 0:02:39.1]} 12... Rxd8 {[%clk
0:02:56.1]} 13. Be2 {[%clk 0:02:37.2]} 13... Rxd1+ {[%clk 0:02:52.4]} 14. Rxd1
{[%clk 0:02:37]} 14... Nfd7 {[%clk 0:02:50.7]} 15. Nf4 {[%clk 0:02:23]} 15...
Be7 {[%clk 0:02:47.2]} 16. Bf2 {[%clk 0:02:18.4]} 16... g5 {[%clk 0:02:32.3]}
17. hxg5 {[%clk 0:02:16.7]} 17... Bxg5 {[%clk 0:02:31.7]} 18. Be3 {[%clk
0:02:13.8]} 18... h5 {[%clk 0:02:15.7]} 19. gxh5 {[%clk 0:02:05.7]} 19... Bxf4
{[%clk 0:02:10.2]} 20. Bxf4 {[%clk 0:02:06.1]} 20... Rxh5 {[%clk 0:02:11.7]} 21.
Rg1 {[%clk 0:02:05.2]} 21... Ke7 {[%clk 0:02:09]} 22. Nd1 {[%clk 0:02:01.3]}
22... e5 {[%clk 0:02:02.1]} 23. Bg5+ {[%clk 0:01:58.4]} 23... f6 {[%clk
0:02:02.4]} 24. Be3 {[%clk 0:01:54.9]} 24... Rh7 {[%clk 0:01:58.7]} 25. Nf2
{[%clk 0:01:50.8]} 25... Ke6 {[%clk 0:01:55.7]} 26. c3 {[%clk 0:01:43.2]} 26...
Bc6 {[%clk 0:01:54]} 27. b3 {[%clk 0:01:40.9]} 27... a5 {[%clk 0:01:50.2]} 28.
Nd3 {[%clk 0:01:37.3]} 28... c4 {[%clk 0:01:44.9]} 29. Nc5+ {[%clk 0:01:35.8]}
29... Nxc5 {[%clk 0:01:44.9]} 30. Bxc5 {[%clk 0:01:37.5]} 30... Nd7 {[%clk
0:01:45.5]} 31. Be3 {[%clk 0:01:35.4]} 31... cxb3 {[%clk 0:01:45.2]} 32. axb3
{[%clk 0:01:37.3]} 32... a4 {[%clk 0:01:45.8]} 33. bxa4 {[%clk 0:01:36.9]} 33...
bxa4 {[%clk 0:01:46]} 34. Bc4+ {[%clk 0:01:38]} 34... Kd6 {[%clk 0:01:46.7]} 35.
Rd1+ {[%clk 0:01:31.6]} 35... Kc7 {[%clk 0:01:47.4]} 36. Kb2 {[%clk 0:01:21]}
36... Rh3 {[%clk 0:01:41.8]} 37. Rd3 {[%clk 0:01:07.5]} 37... Nb6 {[%clk
0:01:22.6]} 38. Bxb6+ {[%clk 0:01:03.7]} 38... Kxb6 {[%clk 0:01:23.4]} 39. Ka3
{[%clk 0:01:01.7]} 39... Kc5 {[%clk 0:01:23.5]} 40. Be6 {[%clk 0:00:58.6]} 40...
Rh1 {[%clk 0:01:17.8]} 41. Rd8 {[%clk 0:00:51.3]} 41... Ra1+ {[%clk 0:01:09]}
42. Kb2 {[%clk 0:00:48.2]} 42... Rf1 {[%clk 0:01:10]} 43. Rc8 {[%clk 0:00:46]}
43... Kd6 {[%clk 0:01:08.7]} 44. Bg4 {[%clk 0:00:42.1]} 44... Bb5 {[%clk
0:00:27.6]} 45. c4 {[%clk 0:00:38.4]} 45... Bc6 {[%clk 0:00:22]} 46. c5+ {[%clk
0:00:30.4]} 46... Kxc5 {[%clk 0:00:20.8]} 47. Bd7 {[%clk 0:00:31.8]} 47... Rxf3
{[%clk 0:00:18.3]} 48. Rxc6+ {[%clk 0:00:28]} 48... Kd4 {[%clk 0:00:19.4]} 49.
Bf5 {[%clk 0:00:24.9]} 49... a3+ {[%clk 0:00:16.6]} 50. Ka2 {[%clk 0:00:25]}
50... Re3 {[%clk 0:00:17.5]} 51. Ra6 {[%clk 0:00:21.1]} 51... Kc5 {[%clk
0:00:07.9]} 52. Rxa3 {[%clk 0:00:18.8]} 52... Re2+ {[%clk 0:00:08]} 53. Kb3
{[%clk 0:00:18]} 53... Kd4 {[%clk 0:00:09.1]} 54. Ra6 {[%clk 0:00:09.7]} 1-0

[Event "*** Qualifier 2: Titled Tuesday 3|2 Blitz"]
[Site "Chess.com"]
[Date "2017.04.11"]
[Round "2"]
[White "rpragchess"]
[Black "Ilja_Semjonovs"]
[Result "0-1"]
[WhiteElo "2121"]
[BlackElo "2177"]
[TimeControl "180+2"]
[EndTime "13:23:28 PDT"]
[Termination "Ilja_Semjonovs won by resignation"]

1. Nf3 {[%clk 0:03:01.3]} 1... Nf6 {[%clk 0:03:00.1]} 2. g3 {[%clk 0:03:02.1]}
2... g6 {[%clk 0:03:00.7]} 3. b3 {[%clk 0:03:03.4]} 3... Bg7 {[%clk 0:03:01.7]}
4. Bb2 {[%clk 0:03:05]} 4... b6 {[%clk 0:03:03.2]} 5. Bg2 {[%clk 0:03:05.8]}
5... Bb7 {[%clk 0:03:04.4]} 6. O-O {[%clk 0:03:07.4]} 6... O-O {[%clk
0:03:05.5]} 7. c4 {[%clk 0:03:09.1]} 7... c5 {[%clk 0:03:06.5]} 8. Nc3 {[%clk
0:03:10.3]} 8... Nc6 {[%clk 0:03:06.8]} 9. d4 {[%clk 0:03:11.1]} 9... cxd4
{[%clk 0:03:07.2]} 10. Nxd4 {[%clk 0:03:12.7]} 10... Qc8 {[%clk 0:03:06.3]} 11.
Nd5 {[%clk 0:03:06.5]} 11... Nxd5 {[%clk 0:03:00.5]} 12. cxd5 {[%clk 0:03:06.4]}
12... Nxd4 {[%clk 0:03:01.5]} 13. Bxd4 {[%clk 0:03:07.3]} 13... Bxd4 {[%clk
0:03:02.3]} 14. Qxd4 {[%clk 0:03:08.9]} 14... d6 {[%clk 0:03:03.7]} 15. Rac1
{[%clk 0:03:09.1]} 15... Qd7 {[%clk 0:03:04.7]} 16. h4 {[%clk 0:03:10.6]} 16...
Rac8 {[%clk 0:02:57.9]} 17. Kh2 {[%clk 0:03:11.3]} 17... Qb5 {[%clk 0:02:19.9]}
18. e4 {[%clk 0:03:02.4]} 18... Rxc1 {[%clk 0:02:13.3]} 19. Rxc1 {[%clk
0:03:03.5]} 19... Rc8 {[%clk 0:02:14.1]} 20. Rxc8+ {[%clk 0:03:04.4]} 20... Bxc8
{[%clk 0:02:15.1]} 21. b4 {[%clk 0:03:05.9]} 21... Ba6 {[%clk 0:02:11.2]} 22. a3
{[%clk 0:02:46.3]} 22... Qc4 {[%clk 0:02:11.4]} 23. Qe3 {[%clk 0:02:42.9]} 23...
Qd3 {[%clk 0:02:05.4]} 24. Qc1 {[%clk 0:02:40.8]} 24... Qc4 {[%clk 0:02:05]} 25.
Qa1 {[%clk 0:02:41.3]} 25... Qe2 {[%clk 0:02:01.2]} 26. Kg1 {[%clk 0:02:42.8]}
26... Bd3 {[%clk 0:01:59.7]} 27. Qd4 {[%clk 0:02:42.9]} 27... Qc2 {[%clk
0:01:49.3]} 28. h5 {[%clk 0:02:34.2]} 28... Qd1+ {[%clk 0:01:47.4]} 29. Kh2
{[%clk 0:02:32.5]} 29... Qxh5+ {[%clk 0:01:47.9]} 30. Kg1 {[%clk 0:02:33.6]}
30... Qd1+ {[%clk 0:01:48.7]} 31. Kh2 {[%clk 0:02:34.6]} 31... Qc2 {[%clk
0:01:46.2]} 32. Bf3 {[%clk 0:02:24.2]} 32... Qc4 {[%clk 0:01:39.9]} 33. Qe3
{[%clk 0:02:24.7]} 33... Bf1 {[%clk 0:01:28.5]} 34. Kg1 {[%clk 0:02:04.3]} 34...
Bh3 {[%clk 0:01:01.6]} 35. Be2 {[%clk 0:02:03.3]} 35... Qc2 {[%clk 0:00:35]} 36.
g4 {[%clk 0:01:45.7]} 36... Qb1+ {[%clk 0:00:35.4]} 37. Kh2 {[%clk 0:01:46]}
37... Bf1 {[%clk 0:00:36.3]} 38. Bf3 {[%clk 0:01:47.3]} 38... Qd3 {[%clk
0:00:29.3]} 39. Qf4 {[%clk 0:01:47.2]} 39... Qd4 {[%clk 0:00:27.1]} 40. Kg1
{[%clk 0:01:43.8]} 40... Bc4 {[%clk 0:00:21.2]} 41. Qc1 {[%clk 0:01:36.6]} 41...
b5 {[%clk 0:00:22.3]} 42. Kg2 {[%clk 0:01:36.1]} 42... Kg7 {[%clk 0:00:23.5]}
43. g5 {[%clk 0:01:35.7]} 43... Bd3 {[%clk 0:00:19.6]} 44. Qd2 {[%clk
0:01:36.1]} 44... Qc4 {[%clk 0:00:14.7]} 45. Qe3 {[%clk 0:01:36.5]} 45... Bc2
{[%clk 0:00:15.1]} 46. Kg3 {[%clk 0:01:34.8]} 46... Qd3 {[%clk 0:00:15.7]} 47.
Qc1 {[%clk 0:01:27.3]} 47... Bb3 {[%clk 0:00:16.9]} 48. Kg2 {[%clk 0:01:23.2]}
48... Bc4 {[%clk 0:00:13.3]} 49. Kg3 {[%clk 0:01:16.9]} 49... Qd4 {[%clk
0:00:14.2]} 50. Qc2 {[%clk 0:01:16.1]} 50... Qe5+ {[%clk 0:00:13.1]} 51. Kg4
{[%clk 0:01:12.5]} 51... Qd4 {[%clk 0:00:11.1]} 52. Qc1 {[%clk 0:01:11.4]} 52...
Bxd5 {[%clk 0:00:11.2]} 53. Qf4 {[%clk 0:01:10.7]} 53... Be6+ {[%clk 0:00:12.2]}
54. Kg3 {[%clk 0:01:11.7]} 54... Qe5 {[%clk 0:00:13.3]} 55. Qxe5+ {[%clk
0:01:10.9]} 55... dxe5 {[%clk 0:00:14.5]} 56. Be2 {[%clk 0:01:12.5]} 56... a6
{[%clk 0:00:15.7]} 57. Kf3 {[%clk 0:01:13.4]} 57... f6 {[%clk 0:00:15]} 58.
gxf6+ {[%clk 0:01:12.8]} 58... exf6 {[%clk 0:00:16.2]} 59. Ke3 {[%clk
0:01:13.1]} 59... Kf8 {[%clk 0:00:17.3]} 60. Kd2 {[%clk 0:01:10.5]} 60... Ke7
{[%clk 0:00:18.1]} 61. Kc3 {[%clk 0:01:12.1]} 61... Kd6 {[%clk 0:00:19]} 62. a4
{[%clk 0:01:13.3]} 62... Bd7 {[%clk 0:00:19]} 63. a5 {[%clk 0:01:14.5]} 63... h5
{[%clk 0:00:19.1]} 64. Kd2 {[%clk 0:01:12.8]} 64... h4 {[%clk 0:00:19.5]} 65.
Bf3 {[%clk 0:01:14.4]} 65... g5 {[%clk 0:00:20.2]} 66. Ke3 {[%clk 0:01:14.6]}
66... f5 {[%clk 0:00:21.2]} 67. Be2 {[%clk 0:01:13.8]} 67... f4+ {[%clk
0:00:21.4]} 68. Kd2 {[%clk 0:01:13.8]} 68... g4 {[%clk 0:00:22.2]} 69. Bf1
{[%clk 0:01:13.7]} 69... h3 {[%clk 0:00:21.2]} 70. Ke2 {[%clk 0:01:14.6]} 70...
f3+ {[%clk 0:00:21.9]} 71. Ke3 {[%clk 0:01:15.5]} 71... h2 {[%clk 0:00:23.1]}
0-1